Cogmind - Beta 13 @@@ ROGUE MODE // 2024.05.18 @ 03:15:47 Player: BionicBot Result: Destroyed by D-53 Grenadier with Mini Grenade Launcher Performance ------------- Evolutions (1) 500 Regions Visited (4) 800 Robots Destroyed (48) 240 Value Destroyed (843) 843 Prototype IDs (5) 100 Alien Tech Used (0) 0 Bonus (135) 135 TOTAL SCORE: 2618 Bonus ------- Follower Combat Kills 170 Friendly Fire -35 Cogmind --------- Core Integrity 0/400 Matter 265/300 Energy 22/100 System Corruption 0% Temperature Cool (0) Movement Rolling (290) Ox14 Location -9/Mines Parts ------- > --- POWER (1) -------- (None) > --- PROPULSION (2) --- Wheel > --- UTILITY (4) ------ Cargo Storage Unit Seismic Detector Improved Targeting Computer > --- WEAPON (2) ------- (None) > --- INVENTORY (30) --- Light Ion Engine Light Nuclear Core Heat Sink Weight Redist. System Visual Processing Unit Improved Terrain Scanner Seismic Detector Utility Shielding Weapon Shielding Medium Armor Plating Thief Drone Bay Spread Laser Improved Medium Laser Improved Assault Rifle Improved Assault Rifle Grenade Launcher Heavy Flail Peak State ------------ > --- POWER ------------ Ion Engine > --- PROPULSION ------- Wheel Wheel > --- UTILITY ---------- Cargo Storage Unit Seismic Detector Improved Targeting Computer > --- WEAPON ----------- Beam Rifle Heavy Assault Rifle > --- INVENTORY -------- Light Ion Engine Light Nuclear Core Wheel Wheel Wheel Wheel Wheel Heat Sink Weight Redist. System Visual Processing Unit Improved Terrain Scanner Seismic Detector Utility Shielding Weapon Shielding Medium Armor Plating Spread Laser Improved Medium Laser Improved Assault Rifle Improved Assault Rifle Improved Assault Rifle Grenade Launcher Heavy Flail [Rating: 16] Favorites ----------- Power Ion Engine Engine Ion Engine Power Core Light Nuclear Core Propulsion Aluminum Leg Treads Improved Treads Leg Aluminum Leg Wheel Wheel Utility Tractor Beam Device Tractor Beam Storage Large Storage Unit Processor Improved Targeting Computer Protection Light Armor Plating Weapon Assault Rifle Energy Gun Particle Gun Ballistic Gun Assault Rifle Launcher Grenade Launcher Build | -11 -10 -10 -9 -9 ------- Run | Yrd Mat Min Mat Min Slots Evolved 2 | . . . 2 . Power . | . . . . . Propulsion . | . . . . . Utility 2 | . . . 2 . Weapon . | . . . . . Parts Attached 45 | 7 11 3 17 7 Power 3 | 1 2 . . . Engine 2 | 1 1 . . . Core 1 | . 1 . . . Reactor . | . . . . . Propulsion 19 | 2 5 1 6 5 Treads 1 | . . . 1 . Leg 10 | 2 5 1 2 . Wheel 8 | . . . 3 5 Hover . | . . . . . Flight . | . . . . . Utility 12 | 2 2 . 7 1 Device 4 | 1 . . 3 . Storage 5 | 1 2 . 2 . Processor 1 | . . . . 1 Hackware . | . . . . . Protection 2 | . . . 2 . Artifact . | . . . . . Weapon 11 | 2 2 2 4 1 Energy Gun 3 | 1 . . 2 . Energy Cannon . | . . . . . Ballistic Gun 7 | 1 2 1 2 1 Ballistic Cannon . | . . . . . Launcher 1 | . . 1 . . Special Weapon . | . . . . . Impact Weapon . | . . . . . Slashing Weapon . | . . . . . Piercing Weapon . | . . . . . Special Melee Weapon . | . . . . . Unidentified Prototypes 1 | . . . . 1 Parts Lost 17 | . 1 1 5 10 Power 2 | . 1 . . 1 Propulsion 8 | . . 1 1 6 Utility 2 | . . . 2 . Weapon 5 | . . . 2 3 Highest Loss Streak 10 | . 1 1 3 10 To Critical Strikes . | . . . . . Average Slot Usage (%) 92 | . 99 100 80 81 Engine 10 | . 5 14 11 9 Core 1 | . 8 . . . Leg 18 | . 28 28 2 . Wheel 6 | . . . 15 19 Device 11 | . 14 14 7 11 Storage 12 | . 14 14 11 11 Protection 3 | . . . 9 . Energy Gun 4 | . 6 . 7 10 Ballistic Gun 20 | . 21 27 13 10 Naked Turns . | . . . . . Heaviest Build 155 | 14 30 31 155 152 Greatest Support 23 | 20 20 20 23 20 Greatest Overweight (x) 15 | . 1 2 15 14 Average Overweight (x) 2 | . . 1 6 7 Largest Inventory Capacity 30 | 8 15 15 30 30 Average Capacity 17 | 7 9 15 26 30 Most Carried 23 | 4 11 12 23 23 Average Carried 12 | 2 7 11 14 22 Final Capacity 30 | 8 15 15 30 30 Final Carried 22 | 4 11 12 22 17 Class Distribution -------------------- 71% | Mutant 28% | Hauler-Mutant Dominant Class ---------------- Mutant | -10/Materials Mutant | -10/Mines Hauler-Mutant | -9/Materials Hauler-Mutant | -9/Mines Resources | -11 -10 -10 -9 -9 ----------- Run | Yrd Mat Min Mat Min Matter Collected 1204 | 282 393 93 433 3 Remotely 799 | 67 393 93 246 . Salvage Created 1409 | 95 586 78 650 . Parts 113 | 10 33 6 64 . Haulers Intercepted 3 | . 2 . 1 . Recyclers Shooed 3 | . 2 . 1 . Parts Field Recycled . | . . . . . Retrieved Matter . | . . . . . Parts Self-Destructed . | . . . . . Prevented . | . . . . . Kills | -11 -10 -10 -9 -9 ------- Run | Yrd Mat Min Mat Min Combat Hostiles Destroyed 28 | . 8 4 16 . Guns 25 | . 8 1 16 . AOE 3 | . . 3 . . Classes Destroyed 10 | 2 4 1 3 . Worker 6 | . 2 . 4 . Builder 2 | . . . 2 . Tunneler 4 | 2 . . 2 . Hauler 3 | . 2 . 1 . Recycler 2 | 1 1 . . . Operator 2 | . 1 . 1 . Watcher 1 | . . . 1 . Swarmer 13 | . . 3 10 . Grunt 11 | . 8 1 2 . Sentry 4 | . . . 4 . Best Kill Streak 6 | 3 3 3 6 . Combat Bots Only 6 | . 2 3 6 . Max Kills in Single Turn 3 | 1 1 3 2 . Gunslinging 1 | . . . 1 . Exploded 3 | . . 3 . . Melee . | . . . . . Uniques/NPCs Destroyed . | . . . . . Combat | -11 -10 -10 -9 -9 -------- Run | Yrd Mat Min Mat Min Hostile Shots Fired 189 | . 74 14 78 23 Missed 46 | . 20 4 19 3 Damage Taken 2359 | . 648 148 619 944 Core 537 | . 113 23 122 279 Absorbed by Shields . | . . . . . Redirected to Shielding 8 | . . . 8 . Core Remaining (%) 72 | 100 . 45 . . Volleys Fired 169 | 4 75 11 74 5 Largest 2 | 2 2 2 2 2 Hottest 85 | 60 60 40 85 79 Shots Fired 335 | 8 150 21 146 10 Gun 334 | 8 150 20 146 10 Cannon . | . . . . . Launcher 1 | . . 1 . . Special . | . . . . . Kinetic 219 | 4 96 20 94 5 Thermal 115 | 4 54 . 52 5 Explosive 1 | . . 1 . . Electromagnetic . | . . . . . Robot Hit Streak 15 | 3 15 6 15 3 Robot Miss Streak 9 | 1 9 3 4 2 Penetration Max . | . . . . . Secondary Targets 8 | . 2 . 6 . Max Gunslinging Chain 1 | . 1 . 1 . Shots Hit Robots 195 | 4 89 12 84 6 Core Hits 75 | 4 27 7 35 2 Critical Kills . | . . . . . Critical Parts Destroyed . | . . . . . Critical Strikes 2 | . . . 2 . Burn 2 | . . . 2 . Melee Attacks . | . . . . . Impact . | . . . . . Slashing . | . . . . . Piercing . | . . . . . Sneak Attacks . | . . . . . Combat Hostiles . | . . . . . Follow-up Attacks . | . . . . . Damage Inflicted 2763 | 44 1103 341 1188 87 Guns 2598 | 44 1099 180 1188 87 Cannons . | . . . . . Explosions 127 | . . 127 . . Melee . | . . . . . Ramming 38 | . 4 34 . . Kinetic 1639 | 23 739 180 652 45 Thermal 959 | 21 360 . 536 42 Explosive 127 | . . 127 . . Electromagnetic . | . . . . . Impact . | . . . . . Slashing . | . . . . . Piercing . | . . . . . Highest Corruption . | . . . . . Average Corruption . | . . . . . Corruption Purged . | . . . . . Corruption Blocked . | . . . . . Overload Shots . | . . . . . Overflow Damage . | . . . . . Projectiles . | . . . . . Explosions . | . . . . . Melee . | . . . . . Knockbacks . | . . . . . Impact . | . . . . . Kinetic . | . . . . . Secondary . | . . . . . Self-Inflicted Damage 3 | . . 3 . . Shots 1 | . . 1 . . Rammed . | . . . . . Targets Rammed 7 | . 1 6 . . Kicked 7 | . 1 6 . . Crushed . | . . . . . Highest Temperature 240 | . 66 20 240 24 Average Temperature 39 | . 25 7 53 15 Received Heat Transfer 552 | . 360 90 102 . Siege Activations . | . . . . . Robots Corrupted . | . . . . . Combat Hostiles . | . . . . . Parts Fried . | . . . . . Impact Corruptions . | . . . . . Robots Melted . | . . . . . Combat Hostiles . | . . . . . Parts Melted 4 | . 2 . 2 . Heat Transferred 2404 | 50 800 . 1443 111 Parts Sabotaged . | . . . . . Parts Stolen . | . . . . . Parts Stripped . | . . . . . Power Chain Reactions . | . . . . . Alert | -11 -10 -10 -9 -9 ------- Run | Yrd Mat Min Mat Min Peak Influence 330 | 15 244 101 330 128 Initial 128 | . 9 23 . 128 Average 73 | 5 96 36 99 121 Maximum Alert Level 1 | . 1 . 1 . Low Security (%) 92 | 100 90 100 81 100 Level 1 7 | . 9 . 18 . Level 2 . | . . . . . Level 3 . | . . . . . Level 4 . | . . . . . Level 5 . | . . . . . High Security . | . . . . . Max Security . | . . . . . Squads Dispatched 3 | . 2 . 1 . Investigation . | . . . . . Extermination . | . . . . . Reinforcement 3 | . 2 . 1 . Assault . | . . . . . Garrison . | . . . . . Intercept . | . . . . . Searches Triggered . | . . . . . Construction Impeded . | . . . . . Haulers Reinforced . | . . . . . Active Scanning Responses . | . . . . . Cargo Convoy Interrupts . | . . . . . Stealth | -11 -10 -10 -9 -9 --------- Run | Yrd Mat Min Mat Min Distress Signals 5 | . 1 1 3 . Communications Jammed . | . . . . . Distress Signals . | . . . . . Times Spotted 54 | . 21 7 24 2 Peak Tracking Total 5 | . 5 3 5 2 Tactical Retreats 4 | . 4 . . . Traps | -11 -10 -10 -9 -9 ------- Run | Yrd Mat Min Mat Min Traps Triggered . | . . . . . Indirectly . | . . . . . Trap Hack Attempts . | . . . . . Triggered . | . . . . . Disarmed . | . . . . . Reprogrammed . | . . . . . Reused . | . . . . . Traps Extracted . | . . . . . Installed . | . . . . . Triggered . | . . . . . Machines | -11 -10 -10 -9 -9 ---------- Run | Yrd Mat Min Mat Min Machines Disabled 1 | . . . 1 . Max in Single Turn . | . . . . . Machines Repaired . | . . . . . Machines Dismantled . | . . . . . Machines Sabotaged . | . . . . . Overloaded Fab Kills . | . . . . . Hacking | -11 -10 -10 -9 -9 --------- Run | Yrd Mat Min Mat Min Machines Accessed 7 | . 4 . 2 1 Terminals 6 | . 4 . 2 . Fabricators . | . . . . . Repair Stations . | . . . . . Recycling Units . | . . . . . Scanalyzers . | . . . . . Garrison Access . | . . . . . Total Hacks 19 | . 10 . 8 1 Successful 11 | . 7 . 3 1 Failed 8 | . 3 . 5 . Catastrophic . | . . . . . Database Lockouts . | . . . . . Manual 15 | . 7 . 8 . Terminals 18 | . 10 . 8 . Fabricators . | . . . . . Repair Stations . | . . . . . Recycling Units . | . . . . . Scanalyzers . | . . . . . Garrison Access . | . . . . . Terminal Hacks 5 | . 3 . 1 1 Prototype ID Bank 2 | . 2 . . . Open Door 1 | . . . . 1 Branch Access Points 2 | . 1 . 1 . Fabricator Hacks . | . . . . . Repair Station Hacks . | . . . . . Recycling Unit Hacks . | . . . . . Scanalyzer . | . . . . . Garrison Access Hacks . | . . . . . Unauthorized Hacks 6 | . 4 . 2 . Terminals 6 | . 4 . 2 . Botnet 6 | . 4 . 2 . Fabricators . | . . . . . Repair Stations . | . . . . . Recycling Units . | . . . . . Scanalyzers . | . . . . . Garrison Access . | . . . . . Data Cores Recovered . | . . . . . Used . | . . . . . Hacking Detections 5 | . 4 . 1 . Full Trace Events . | . . . . . Feedback Events . | . . . . . Feedback Blocked . | . . . . . Robot Schematics Acquired . | . . . . . Robots Built . | . . . . . Authchips . | . . . . . Time . | . . . . . Total Robot Build Rating . | . . . . . Part Schematics Acquired . | . . . . . Parts Built . | . . . . . Authchips . | . . . . . Time . | . . . . . Total Part Build Rating . | . . . . . Parts Repaired . | . . . . . Time . | . . . . . Parts Recycled . | . . . . . Recycled Matter . | . . . . . Retrieved Matter . | . . . . . Retrieved Components . | . . . . . Parts Scanalyzed . | . . . . . Part Schematics Acquired . | . . . . . Parts Damaged . | . . . . . Bothacking | -11 -10 -10 -9 -9 ------------ Run | Yrd Mat Min Mat Min Used RIF Installer . | . . . . . Robots Hacked . | . . . . . Non-combat . | . . . . . Combat . | . . . . . Robot Hacks Applied . | . . . . . Relay Couplers Released . | . . . . . Fabnet Peak Effective % . | . . . . . Robots Rewired . | . . . . . Allies Hacked . | . . . . . Hacks Repelled . | . . . . . Allies | -11 -10 -10 -9 -9 -------- Run | Yrd Mat Min Mat Min Total Allies 5 | . . 5 . . Largest Group 4 | . . 4 4 . Highest-Rated Group 65 | . . 65 65 . Highest-Rated Ally 31 | . . 31 31 . Total Orders . | . . . . . Ally Attacks 45 | . . 16 29 . Total Damage 438 | . . 200 238 . Kills 6 | . . 3 3 . Allies Corrupted . | . . . . . Allies Melted . | . . . . . Intel | -11 -10 -10 -9 -9 ------- Run | Yrd Mat Min Mat Min Robot Analysis Total . | . . . . . Derelict Logs Recovered 3 | . . 3 . . Drone Launches . | . . . . . Drone Recoveries . | . . . . . Exploration | -11 -10 -10 -9 -9 ------------- Run | Yrd Mat Min Mat Min Turns Passed 3563 | 97 828 1341 1118 179 Spaces Moved 1678 | 60 435 679 420 84 Core 3 | 3 . . . . Treads 48 | . . . 48 . Legs 1208 | 57 435 679 37 . Wheels 419 | . . . 335 84 Hover . | . . . . . Flight . | . . . . . Fastest Speed 50 | 50 120 190 110 185 Average Speed 172 | 116 123 190 201 187 Slowest Speed 305 | 120 190 260 305 290 Overloaded Moves . | . . . . . Propulsion Burnouts . | . . . . . Robots Hopped . | . . . . . Cave-ins Triggered . | . . . . . Exploration Rate (%) 42 | 5 54 100 29 26 Regions Visited 4 Branch Regions 2 Pre-discovered Areas . | . . . . . Known Exits Taken 2 | . 1 . 1 . Unknown Exits Taken 2 | 1 . 1 . . Scrap Searched 2 | . . 1 . 1 Spaces Dug 8 | . . 8 . . Terrain Destroyed 8 | . . 8 . . Melee . | . . . . . Projectile . | . . . . . AOE 8 | . . 8 . . Terrain Rammed . | . . . . . Walls Destroyed . | . . . . . Machines Disabled . | . . . . . Actions | -11 -10 -10 -9 -9 --------- Run | Yrd Mat Min Mat Min Total 2005 | 75 579 702 552 97 Wait 47 | 1 37 1 8 . Move 1674 | 59 434 678 419 84 Hop . | . . . . . Pick Up 33 | 4 9 2 17 1 Fast Attach 15 | 7 1 1 5 1 Attach 16 | . 1 . 9 6 Detach 9 | . . . 9 . Swap 14 | . 9 2 3 . Drop 21 | . 12 1 8 . Fire 169 | 4 75 11 74 5 Melee . | . . . . . Ram . | . . . . . Kick 7 | . 1 6 . . Crush . | . . . . . Escape Stasis . | . . . . . Rewire . | . . . . . Trap . | . . . . . Miscellaneous . | . . . . . Route ------- -11/Scrapyard -10/Materials (discovered 2 exits: *Mat / *Min) -10/Mines (discovered 3 exits: *Mat x2 / [*Sub]) -9/Materials (discovered 3 exits: Mat / *Min x2) -9/Mines (discovered 2 exits: *Mat / [*Exi]) History --------- Turn | Location | Event 10 | -11/Scrapyard | Discovered new exit (range 16) 98 | -11/Scrapyard | Entered Materials 314 | -10/Materials | Build established: Mutant 452 | -10/Materials | Discovered new exit (range 16) 573 | -10/Materials | Identified exit to Mines 926 | -10/Materials | Entered Mines 933 | -10/Mines | Met a Derelict bent on vengeance 983 | -10/Mines | Learned Materials emergency access door positions 987 | -10/Mines | Learned Materials trap positions 1065 | -10/Mines | Discovered new exit (range 6) 1262 | -10/Mines | Assisted by bots powering up and referring to "LRC-V3" 1313 | -10/Mines | Discovered new exit (range 7) 1435 | -10/Mines | Learned location of 1 exit from Materials 1535 | -10/Mines | Core integrity fell below 50% 2221 | -10/Mines | Discovered new exit (range 10) 2267 | -10/Mines | Entered Materials 2267 | -9/Materials | Accompanied by 4 allies 2267 | -9/Materials | Evolved 2 slots: Utility x2 2267 | -9/Materials | Discovered new exit (range 10) 2268 | -9/Materials | Identified exit to Materials 2269 | -9/Materials | Loaded intel: 19 trap records 2272 | -9/Materials | Led the pair of lost Derelicts to an unsafe place 2515 | -9/Materials | Lost 3 allies 2609 | -9/Materials | Lost 3 parts (1n2w) 2839 | -9/Materials | Build established: Hauler-Mutant 3252 | -9/Materials | Identified exit to Mines 3385 | -9/Materials | Entered Mines 3431 | -9/Mines | Found the Drone Emporium 3439 | -9/Mines | Found Prototype Device 3464 | -9/Mines | Discovered exit to Materials (range 9) 3517 | -9/Mines | Assembled infested the area 3548 | -9/Mines | Discovered new exit (range 7) 3549 | -9/Mines | Core integrity fell below 50% 3559 | -9/Mines | Core integrity fell below 20% 3564 | -9/Mines | Destroyed by D-53 Grenadier with Mini Grenade Launcher Last Messages --------------- 03536_ D-53 Grenadier unfolds itself. 03539_ Wheel destroyed. 03544_ Ion Engine destroyed. 03546_ Wheel destroyed. 03547_ K-01 Serf collects debris. 03548_ Hvy. Assault Rifle destroyed. 03548_ EXIT=FOUND 03548_ Identified Imp. Assault Rifle. 03550_ K-01 Serf collects debris. 03552_ The unstable cave ceiling collapses. 03554_ Wheel destroyed. 03556_ The unstable cave ceiling collapses. 03558_ Imp. Assault Rifle destroyed. 03558_ Beam Rifle destroyed. 03558_ Wheel destroyed. 03559_ The unstable cave ceiling collapses. 03560_ Wheel destroyed. 03561_ The unstable cave ceiling collapses. 03562_ K-01 Serf collects debris. 03563_ The unstable cave ceiling collapses. Map ----- +----------------------------------------------------+ | ?????## ##????????????????? | | ????## #????????????????? | | ???## ##?? ????????????? | | ???# ## #???????????? | | ???# #???????????? | | ??## ##???????????? | | ??# #????????????? | | ??# ##????????????? | | ??## % ####?????????????? | | ???## #####????????????????? | | ????## ##????????????????????? | | ?????## #?????????????????????? | | ??????# ##????????????????????? | | ??????# ####?????????????????? | | ??????# ########??????????? | | ??????# #??????????? | | ?????## d ##### #??????????? | | ????## ##????????????????? | | ???## ##????????????????? | | ???# ##### ##?????????? | | ???# # $ ???????? | | ??## #####???????????? | | ??# #???????????????? | | ???# #???????????????? | | ???# ##???????????????? | | ???# @ #????????????????? | | ???# # ###????????????????? | | ???## < # ?????????????????? | | ????### ## ##????????????????? | | ??????#### ??#?????????????????? | | ??????????# ???????????????????? | | ???????????##??????????????????? | | ???????????????????????????????? | | ???????????????????????????????? | | ???????????????????????????????? | | ???????????????????????????????? | | ???????????????????????????????? | | ???????????????????????????????? | | ???????????????????????????????? | | ???????????????????????????????? | | ???????????????????????????????? | | ???????????????????????????????? | | ???????????????????????????????? | | ???????????????????????????????? | | ???????????????????????????????? | | ???????????????????????????????? | | ???????????????????????????????? | | ???????????????????????????????? | | ???????????????????????????????? | | ???????????????????????????????? | +----------------------------------------------------+ Best States ------------- Heat Dissipation 28 Energy Generation 14 Energy Capacity 250 Matter Stores 300 Matter Capacity 300 Sight Range 16 Terrain Scan Density 10 Armor Coverage 150 Utility Shielding 33 Evasion (%) 55 Targeting Accuracy 6 Recoil Reduction 1 Item Schematics ----------------- None Robot Schematics ------------------ None Fabricated ------------ Nothing Alien Tech Used ----------------- None Achievements -------------- Tank Challenges ------------ None Game ------ Seed LatentImpactNanoactuators Manual? 0 Play Time 00:27:18 Cumulative 94.1 hours Start 2024.05.17 @ 22:04:31 End 2024.05.18 @ 03:15:47 Sessions 1 Manual Loads 0 Difficulty Rogue Special Mode None Game No. 73 Rogue 73 Adventurer 0 Explorer 0 Win Type - Total 2 Types 2/0/0/0/0/0/0/0/0 Lore% 30 Gallery% 47 Achievement% 42 Wizard Run 0 Options --------- Layout 0 ASCII 0 Keyboard 1 Movement Numpad Keybinds 0 Fullscreen 2 Font 18/SmallcapsGlow Map View 76x50 Zoom Use 0% Tactical HUD 1 Map Filters NONE Filters NONE Steam 1 RUN: cd3bee73-735a-4d84-aeca-9014e484857b